Workbook

Sheet List2
A1: Úprava príjmov obce, rozpočtové opatrenie č. 13
A2: Zdroj fin. | B2: Ekonom. členenie | D2: Popis | E2: Plnenie 2019 | F2: Plnenie 2020 | G2: 2021 Schválený rozpočet | H2: Upravený RR po úprave č. 10 | I2: Návrh na úpravu č. 13 | J2: Upravený RR po úprave č. 13 | K2: Plnenie k 30.06. 2021 | L2: % uprav. schvál.
A3: 111 | B3: 311 | D3: Tuzem.granty na spol.staveb.úrad | E3: 5541.36 | F3: 6138.88 | G3: 6138.88 | H3: 5428.11 | I3: 0 | J3: =SUM(H3:I3) -> 5428.11 | K3: 5428.11 | L3: =vypocetPercent(J3,K3) -> 100
A4: 111 | B4: 311 | D4: Tuzem.granty-. poz.komunik. | E4: 183.3 | F4: 181.66 | G4: 0 | H4: 180.96 | I4: 0 | J4: =SUM(H4:I4) -> 180.96 | K4: 180.96 | L4: =vypocetPercent(J4,K4) -> 100
A5: 111 | B5: 312 001 | D5: Transféry zo ŠR - školstvo | E5: 566195 | F5: 635060 | G5: 644695 | H5: 639233 | I5: 0 | J5: 639233 | K5: 322709 | L5: =vypocetPercent(J5,K5) -> 50.48378291
A6: 111 | B6: 312 | C6: 001 | D6: Transfery zo ŠR - školské potreby | E6: 132.8 | F6: 66.4 | G6: 0 | H6: =SUM(G6) -> 0 | I6: 0 | J6: 0 | K6: 0 | L6: =vypocetPercent(J6,K6) -> 0
A7: 111 | B7: 312 | C7: 001 | D7: Transfery zo ŠR - odchodné | E7: 0 | F7: 0 | G7: 0 | H7: 1340 | I7: 0 | J7: 1340 | K7: 1340 | L7: 100
A8: 111 | B8: 312 | C8: 001 | D8: Transfery zo ŠR - matrika | E8: 6561.73 | F8: 7240.37 | G8: 6176.25 | H8: 5704.85 | I8: 0 | J8: 5704.85 | K8: 5704.85 | L8: 100
A9: 111 | B9: 312 | C9: 001 | D9: Transfery zo ŠR - hlás.pobyt.,regist.obyv. | E9: 1400.19 | F9: 1387.65 | G9: 0 | H9: 1382.37 | I9: 0 | J9: 1382.37 | K9: 1382.37 | L9: 100
A10: 111 | B10: 312 | C10: 001 | D10: Transfery zo ŠR - register adries | E10: 37.2 | F10: 61.2 | G10: 0 | H10: 78.8 | I10: 0 | J10: 78.8 | K10: 78.8 | L10: 100
A11: 111 | B11: 312 | C11: 001 | D11: Transfery zo ŠR - vzdelávacie poukazy | E11: 9024 | F11: 9472 | G11: 0 | H11: 5914 | I11: 0 | J11: 5914 | K11: 5914 | L11: 100
A12: 111 | B12: 312 | C12: 001 | D12: Transfery zo ŠR - strava | E12: 40285.2 | F12: 55197.6 | G12: 0 | H12: 31018.8 | I12: 0 | J12: 31018.8 | K12: 31018.8 | L12: 100
A13: 111 | B13: 312 | C13: 001 | D13: Transfery zo ŠR - rodin.prídav. | E13: 3230.62 | F13: 3842.21 | G13: 0 | H13: 2338.85 | I13: 0 | J13: 2338.85 | K13: 2032.85 | L13: 86.91664707
A14: 111 | B14: 312 | C14: 001 | D14: Transfery zo ŠR - rodič.príspevok | E14: 1103.5 | F14: 0 | G14: 0 | H14: 0 | I14: 0 | J14: 0 | K14: 0 | L14: 0
A15: 111 | B15: 312 | C15: 001 | D15: Transfery zo ŠR - hmotná núdza | E15: 871 | F15: 0 | G15: 0 | H15: 0 | I15: 0 | J15: 0 | K15: 0 | L15: 0
A16: 111 | B16: 312 | C16: 001 | D16: Transfery zo ŠR - asistent učiteľa. | E16: 33264 | F16: 36576 | G16: 0 | H16: 24384 | I16: 0 | J16: 24384 | K16: 24384 | L16: 100
A17: 111 | B17: 312 | C17: 001 | D17: Transfery zo ŠR - prísp.na vých, vzdel.MŠ | E17: 6128 | F17: 7538 | G17: 0 | H17: 4944 | I17: 0 | J17: 4944 | K17: 4944 | L17: 100
A18: 111 | B18: 312 | C18: 001 | D18: Transfery zo ŠR - pre žiak.zo soc.zn.prostr. | E18: 400 | F18: 400 | G18: 0 | H18: 0 | I18: 0 | J18: 0 | K18: 0 | L18: 0
A19: 111 | B19: 312 | C19: 001 | D19: Transfery zo ŠR - mimoriadne výsledky žiakov | E19: 0 | F19: 400 | G19: 0 | H19: 0 | I19: 0 | J19: 0 | K19: 0 | L19: 0
A20: 111 | B20: 312 | C20: 001 | D20: Transfery zo ŠR - digitalizácia | E20: 0 | F20: 0 | G20: 0 | H20: 2000 | I20: 0 | J20: 2000 | K20: 2000 | L20: 100
A21: 111 | B21: 312 | C21: 001 | D21: Transfery zo ŠR - učebnice | E21: 1495 | F21: 8260 | G21: 0 | H21: 6188 | I21: 0 | J21: 6188 | K21: 3094 | L21: 50
A22: 111 | B22: 312 | C22: 001 | D22: Transfery zo ŠR - životné prostredie | E22: 396.64 | F22: 399.47 | G22: 0 | H22: 410.52 | I22: 0 | J22: 410.52 | K22: 410.52 | L22: 100
A23: 111 | B23: 312 | C23: 001 | D23: Transfery zo ŠR - škola v prírode | E23: 3600 | F23: 0 | G23: 0 | H23: 0 | I23: 0 | J23: 0 | K23: 0 | L23: 0
A24: 111 | B24: 312 | C24: 001 | D24: Transfery zo ŠR - lyžiarsky výcvik | E24: 4050 | F24: 4650 | G24: 0 | H24: 0 | I24: 0 | J24: 0 | K24: 0 | L24: 0
A25: 111 | B25: 312 | C25: 001 | D25: Transfery zo ŠR - vojnové hroby | E25: 179.34 | F25: 199.98 | G25: 0 | H25: 0 | I25: 0 | J25: 0 | K25: 0 | L25: 0
A26: 111 | B26: 312 | C26: 001 | D26: Transfery zo ŠR - voľby do NR SR | E26: 3282.26 | F26: 2349.48 | G26: 0 | H26: 214.8 | I26: 0 | J26: 214.8 | K26: 214.8 | L26: 100
A27: 111 | B27: 312 | C27: 001 | D27: Transfery zo ŠR - voľby EP | E27: 1870.56 | F27: 0 | G27: 0 | H27: 0 | I27: 0 | J27: 0 | K27: 0 | L27: 0
A28: 111 | B28: 312 | C28: 001 | D28: Transfery zo ŠR - pohrebné služby | E28: 79.67 | F28: 159.34 | G28: 0 | H28: 0 | I28: 0 | J28: 0 | K28: 0 | L28: 0
A29: 111 | B29: 312 | C29: 001 | D29: Transfery zo ŠR - sčítanie obyv.a domov | E29: 0 | F29: 7652 | G29: 0 | H29: 6843.58 | I29: 0 | J29: 6843.58 | K29: 6843.58 | L29: 100
A30: 111 | B30: 312 | C30: 001 | D30: Transfery z VÚC podpora športu | E30: 1100 | F30: 0 | G30: 0 | H30: 0 | I30: 0 | J30: 0 | K30: 0 | L30: 0
A31: 111 | B31: 312 | C31: 001 | D31: Transfery zo ŠR - Fond na podporu umenia | E31: 9500 | F31: 1106.94 | G31: 0 | H31: 0 | I31: 0 | J31: 0 | K31: 0 | L31: 0
A32: 111 | B32: 312 | C32: 001 | D32: Transfery zo ŠR - FNPU knižnica | E32: 0 | F32: 2000 | G32: 0 | H32: 0 | I32: 0 | J32: 0 | K32: 0 | L32: 0
A33: 111 | B33: 312 | C33: 001 | D33: Transfery zo ŠR - MV SR COVID | E33: 0 | F33: 8660.33 | G33: 0 | H33: 125305 | I33: 0 | J33: 125305 | K33: 125305 | L33: 100
A34: 111 | B34: 312 | C34: 001 | D34: Dotácia z NSK okná OTJ | E34: 0 | F34: 1600 | G34: 0 | H34: 0 | I34: 0 | J34: 0 | K34: 0 | L34: 0
A35: 111 Zdroje zo štátneho rozpočtu | E35: =SUM(E3:E34) -> 699911.37 | F35: =SUM(F3:F34) -> 800599.51 | G35: =SUM(G3:G34) -> 657010.13 | H35: =SUM(H3:H34) -> 862909.64 | I35: =SUM(I3:I34) -> 0 | J35: 862909.64 | K35: =SUM(K3:K34) -> 542985.64 | L35: 62.92497092
A36: 1AB1 | B36: 331 | C36: 001 | D36: Transfery z EÚ - kompostéry | E36: 127063.44 | F36: 0 | G36: 0 | H36: 0 | I36: 0 | J36: 0 | K36: 0 | L36: 0
A37: 1AB2 | B37: 312 | C37: 001 | D37: Transfery so ŠR - kompostéry | E37: 14948.64 | F37: 0 | G37: 0 | H37: 0 | I37: 0 | J37: 0 | K37: 0 | L37: 0
A38: 1AB1 a 1AB2 Kohézny fond | E38: =SUM(E36:E37) -> 142012.08 | F38: =SUM(F36:F37) -> 0 | G38: =SUM(G36:G37) -> 0 | H38: =SUM(H36:H37) -> 0 | I38: =SUM(I36:I37) -> 0 | J38: 0 | K38: =SUM(K36:K37) -> 0 | L38: 0
A39: 1AC1 | B39: 312 | C39: 001 | D39: Projekt - asist.učitaľa 13,6502 % - ESF | E39: 0 | F39: 0 | G39: 0 | H39: 12475.29 | I39: 0 | J39: 12475.29 | K39: 12475.29 | L39: 100
A40: 1AC2 | B40: 312 | C40: 001 | D40: Projekt - asist.učitaľa 11,4084 % - ESF | E40: 0 | F40: 0 | G40: 0 | H40: 4677.22 | I40: 0 | J40: 4677.22 | K40: 4677.22 | L40: 100
A41: 1AC3 | B41: 312 | C41: 001 | D41: Projekt - asist.učitaľa 5,9951 % - ESF | E41: 0 | F41: 0 | G41: 0 | H41: 2704.85 | I41: 0 | J41: 2704.85 | K41: 2704.85 | L41: 100
A43: Zdroj fin. | B43: Ekonom. členenie | D43: Popis | E43: Plnenie 2019 | F43: Plnenie 2020 | G43: 2021 Schválený rozpočet | H43: Upravený RR po úprave č. 10 | I43: Návrh na úpravu č. 13 | J43: Upravený RR po úprave č. 13 | K43: Plnenie k 30.06. 2021 | L43: % uprav. schvál.
A44: 3AC1 | B44: 312 | C44: 001 | D44: Projekt - asist.učitaľa 63,4193 % - ESF | E44: 0 | F44: 6346.88 | G44: 0 | H44: 17446.12 | I44: 0 | J44: =SUM(H44:I44) -> 17446.12 | K44: 17446.12 | L44: =vypocetPercent(J44,K44) -> 100
A45: 3AC2 | B45: 312 | C45: 001 | D45: Projekt - asist.učitaľa 2,1921 % - ESF | E45: 0 | F45: 1120.02 | G45: 0 | H45: 603.02 | I45: 0 | J45: =SUM(H45:I45) -> 603.02 | K45: 603.02 | L45: =vypocetPercent(J45,K45) -> 100
A46: 3AC3 | B46: 312 | C46: 001 | D46: Projekt - asist.učitaľa 3,3349 % - ESF | E46: 0 | F46: 768.35 | G46: 0 | H46: 917.41 | I46: 0 | J46: =SUM(H46:I46) -> 917.41 | K46: 917.41 | L46: =vypocetPercent(J46,K46) -> 100
A47: 3AC1, 3AC2, 3AC3 Európsky sociálny fond | E47: =SUM(E44:E46) -> 0 | F47: =SUM(F44:F46) -> 8235.25 | G47: =SUM(G44:G46) -> 0 | H47: =SUM(H39:H46) -> 38823.91 | I47: =SUM(I39:I46) -> 0 | J47: =SUM(H47:I47) -> 38823.91 | K47: =SUM(K39:K46) -> 38823.91 | L47: =vypocetPercent(J47,K47) -> 100
A48: 72c | B48: 292 | C48: 027 | D48: Vecné bremeno ZsDi | E48: 2447.5 | F48: 2812 | G48: 0 | H48: 0 | I48: 0 | J48: 0 | K48: 0 | L48: 0
A49: 72c | B49: 311 | D49: Tuz. B. granty- Dobrovoľná pož.och. | E49: 3000 | F49: 3000 | G49: 0 | H49: 3000 | I49: 0 | J49: 3000 | K49: 3000 | L49: 100
A50: 72c Od iných sub., napr.formou dotácie alebo grantu | E50: =SUM(E48:E49) -> 5447.5 | F50: =SUM(F48:F49) -> 5812 | G50: =SUM(G48:G49) -> 0 | H50: =SUM(H48:H49) -> 3000 | I50: =SUM(I48:I49) -> 0 | J50: 3000 | K50: =SUM(K48:K49) -> 3000 | L50: 100
A51: 72h | B51: 292 | D51: Tuz. B. transf.- úrad práce refundácia | E51: 17799.33 | F51: 4515 | G51: 0 | H51: 0 | I51: 0 | J51: 0 | K51: 0 | L51: 0
A52: 72h | B52: 312 | D52: Tuz. B. transf.- úrad práce | E52: 0 | F52: 8575.44 | G52: 0 | H52: 469.62 | I52: 0 | J52: 469.62 | K52: 469.62 | L52: 100
A53: 72h Od úradu práce, soc.v. a rodiny podľa os. predp. | E53: =SUM(E51:E52) -> 17799.33 | F53: =SUM(F51:F52) -> 13090.44 | G53: =SUM(G51:G52) -> 0 | H53: 469.62 | I53: 0 | J53: 469.62 | K53: =SUM(K51:K52) -> 469.62 | L53: 100
A54: 72b | B54: 312 | C54: 011 | D54: Transf.od združenia TUNSKO | E54: 24400 | F54: 33000 | G54: 23000 | H54: 19600 | I54: 0 | J54: 19600 | K54: 0 | L54: 0
A55: 72b Iné zdroje na základe zmluvy - združenie TUNSKO | E55: =SUM(E54) -> 24400 | F55: =SUM(F54) -> 33000 | G55: 23000 | H55: 19600 | I55: 0 | J55: 19600 | K55: 0 | L55: 0
A56: 45 | B56: 312 | C56: 001 | D56: Transfery zo ŠR - Progr.na podporu dediny | E56: 5000 | F56: 0 | G56: 0 | H56: 0 | I56: 0 | J56: 0 | K56: 0 | L56: 0
A57: 45 Vlastné zdroje zo štátneho fondu | E57: =SUM(E56) -> 5000 | F57: 0 | G57: =SUM(G56) -> 0 | H57: =SUM(H56) -> 0 | I57: =SUM(I56) -> 0 | J57: 0 | K57: 0 | L57: 0
A58: 41 | B58: 111 | C58: 003 | D58: Výnos dane z príjm.poukáz.úz.samosp. | E58: 1392065.76 | F58: 1416939.89 | G58: 1380000 | H58: 1380000 | I58: 0 | J58: =SUM(H58:I58) -> 1380000 | K58: 684407.77 | L58: =vypocetPercent(J58,K58) -> 49.59476594
A59: 41 | B59: 121 | C59: 001 | D59: Daň z pozemkov | E59: 149840.1 | F59: 152575.1 | G59: 165000 | H59: 165000 | I59: 0 | J59: 165000 | K59: 55681.76 | L59: =vypocetPercent(J59,K59) -> 33.74652121
A60: 41 | B60: 121 | C60: 002 | D60: Zo stavieb | E60: 49216.41 | F60: 40178.15 | G60: 46300 | H60: 46300 | I60: 0 | J60: 46300 | K60: 35943.5 | L60: 77.63174946
A61: 41 | B61: 121 | C61: 003 | D61: Z bytov | E61: 0 | F61: 547.53 | G61: 1100 | H61: 1100 | I61: 0 | J61: 1100 | K61: 545.43 | L61: 49.58454545
A62: 41 | B62: 133 | C62: 001 | D62: Za psa | E62: 3412 | F62: 3183.86 | G62: 3400 | H62: 3400 | I62: 0 | J62: 3400 | K62: 2560.53 | L62: 75.30970588
A63: 41 | B63: 133 | C63: 006 | D63: Daň za ubytovanie | E63: 1762.2 | F63: 1139.49 | G63: 1300 | H63: 1300 | I63: 0 | J63: 1300 | K63: 70.62 | L63: 5.432307692
A64: 41 | B64: 133 | C64: 012 | D64: Za užívanie verejného priestranstva | E64: 2050.75 | F64: 881.28 | G64: 1000 | H64: 1000 | I64: 0 | J64: 1000 | K64: 459.52 | L64: 45.952
A65: 41 | B65: 133 | C65: 013 | D65: Za komunál.odpady | E65: 36437.4 | F65: 52784.8 | G65: 54000 | H65: 54000 | I65: 0 | J65: 54000 | K65: 28645.9 | L65: 53.04796296
A66: 41 | B66: 212 | C66: 002 | D66: Príjmy z prenajatých pozemkov | E66: 14711.25 | F66: 27113.33 | G66: 19500 | H66: 19500 | I66: 0 | J66: 19500 | K66: 17129.12 | L66: 87.84164103
A67: 41 | B67: 212 | C67: 003 | D67: Z prenajatých budov a ost.zariadení | E67: 57011.8 | F67: 57927.3 | G67: 57400 | H67: 58208.52 | I67: 0 | J67: 58208.52 | K67: 26615.53 | L67: 45.72445752
A68: 41 | B68: 212 | C68: 004 | D68: Prenájom strojov, prístrojov | E68: 11 | F68: 1 | G68: 0 | H68: 0 | I68: 0 | J68: 0 | K68: 0 | L68: 0
A69: 41 | B69: 221 | C69: 004 | D69: Ostatné poplatky- rybár.lístky | E69: 648.5 | F69: 562 | G69: 600 | H69: 800 | I69: 200 | J69: 1000 | K69: 800 | L69: 80
A70: 41 | B70: 221 | C70: 004 | D70: Ostatné poplatky | E70: 18010.74 | F70: 21627.55 | G70: 15000 | H70: 15000 | I70: 0 | J70: 15000 | K70: 5891 | L70: 39.27333333
A71: 41 | B71: 221 | C71: 004 | D71: Ostatné poplatky - stavebné | E71: 0 | F71: 0 | G71: 0 | H71: 0 | J71: 0 | K71: 0 | L71: 0
A72: 41 | B72: 222 | C72: 003 | D72: Pokuty a penále | E72: 334.81 | F72: 244.94 | G72: 0 | H72: 700 | I72: 0 | J72: 700 | K72: 360 | L72: 51.42857143
A73: 41 | B73: 223 | C73: 001 | D73: Poplatky a platby - za separovaný zber | E73: 215.44 | F73: 170.4 | G73: 0 | H73: 0 | I73: 0 | J73: 0 | K73: 0 | L73: 0
A74: 41 | B74: 223 | C74: 001 | D74: Poplatky a platby - znalecké posudky | E74: 0 | F74: 457 | G74: 0 | H74: 216 | I74: 0 | J74: 216 | K74: 216 | L74: 100
A75: 41 | B75: 223 | C75: 001 | D75: Za služby domu smútku | E75: 576.08 | F75: 484.94 | G75: 500 | H75: 1200 | I75: 0 | J75: 1200 | K75: 629.86 | L75: 52.48833333
A76: 41 | B76: 223 | C76: 001 | D76: Za relácie v miestnom rozhlase | E76: 1039.32 | F76: 763.6 | G76: 800 | H76: 800 | I76: 0 | J76: 800 | K76: 320.16 | L76: 40.02
A77: 41 | B77: 223 | C77: 001 | D77: Za predaj suvenír., novín | E77: 3566.55 | F77: 3187.9 | G77: 3500 | H77: 3500 | I77: 0 | J77: 3500 | K77: 2711.5 | L77: 77.47142857
A78: 41 | B78: 223 | C78: 001 | D78: Za opatrovateľskú službu | E78: 2004.64 | F78: 1640.12 | G78: 1800 | H78: 1800 | I78: 0 | J78: 1800 | K78: 744.66 | L78: 41.37
A79: 41 | B79: 223 | C79: 001 | D79: Za poskytnutie služieb obyvateľstvu | E79: 14890.29 | F79: 17416.02 | G79: 18000 | H79: 18000 | I79: 0 | J79: 18000 | K79: 4823.4 | L79: 26.79666667
A80: 41 | B80: 223 | C80: 001 | D80: Vývoz VKK - zb.sp. | E80: 0 | F80: 0 | G80: 0 | H80: 0 | J80: 0 | K80: 0 | L80: 0
A81: 41 | B81: 223 | C81: 001 | D81: Za poskytnutie služieb - zb.dvor | E81: 634.91 | F81: 2851.68 | G81: 2000 | H81: 4000 | I81: 0 | J81: 4000 | K81: 2689.69 | L81: 67.24225
A82: 41 | B82: 223 | C82: 001 | D82: Z kultúrnej činnosti | E82: 157.43 | F82: 982.26 | G82: 500 | H82: 500 | I82: 0 | J82: 500 | K82: 0 | L82: 0
A83: 41 | B83: 223 | C83: 001 | D83: Cintorínske popl. | E83: 4782.61 | F83: 4404.87 | G83: 3000 | H83: 4500 | I83: 0 | J83: =SUM(H83:I83) -> 4500 | K83: 2355.38 | L83: =vypocetPercent(J83,K83) -> 52.34177778
A84: 41 | B84: 223 | C84: 001 | D84: Poplatky a platby za hráčov OTJ | E84: 1100 | F84: 0 | G84: 0 | H84: 0 | I84: 0 | J84: =SUM(H84:I84) -> 0 | K84: 0 | L84: =vypocetPercent(J84,K84) -> 0
A86: Zdroj fin. | B86: Ekonom. členenie | D86: Popis | E86: Plnenie 2019 | F86: Plnenie 2020 | G86: 2021 Schválený rozpočet | H86: Upravený RR po úprave č. 10 | I86: Návrh na úpravu č. 13 | J86: Upravený RR po úprave č. 13 | K86: Plnenie k 30.06. 2021 | L86: % uprav. schvál.
A87: 41 | B87: 223 | C87: 001 | D87: Poplatky za reklamu v novinách | E87: 36.31 | F87: 0 | G87: 0 | H87: 0 | I87: 0 | J87: =SUM(H87:I87) -> 0 | K87: 0 | L87: =vypocetPercent(J87,K87) -> 0
A88: 41 | B88: 223 | C88: 001 | D88: Platby z predaja vytriedených komodít | E88: 0 | F88: 0 | G88: 0 | H88: 10000 | I88: 0 | J88: 10000 | K88: 0 | L88: 0
A89: 41 | B89: 223 | C89: 001 | D89: Platby NOWAS - na refundáciu tried.zberu | E89: 0 | F89: 0 | G89: 0 | H89: 34386 | I89: 0 | J89: 34386 | K89: 0 | L89: 0
A90: 41 | B90: 223 | C90: 001 | D90: Platby RECOBAL - na refund. Sep.zberu | E90: 213790 | F90: 262487.43 | G90: 240000 | H90: 59048.01 | I90: 0 | J90: 59048.01 | K90: 59048.01 | L90: 100
A91: 41 | B91: 223 | C91: 001 | D91: Platby ENVI PAK - rok 2018/RECOBAL | E91: 21379 | F91: 42758 | G91: 0 | H91: 0 | I91: 0 | J91: 0 | K91: 0 | L91: 0
A92: 41 | B92: 223 | C92: 001 | D92: Platby a popl.za služby -drvenie,pílenie,bio | E92: 0 | F92: 2615.42 | G92: 0 | H92: 4000 | I92: 0 | J92: 4000 | K92: 2372.9 | L92: 59.3225
A93: 41 | B93: 223 | C93: 003 | D93: Poplatky a platby z stravné | E93: 0 | F93: 310.4 | G93: 0 | H93: 0 | I93: 0 | J93: 0 | K93: 0 | L93: 0
A94: 41 | B94: 223 | C94: 004 | D94: Platby za prebytočný hn.majetok,SN | E94: 173.4 | F94: 331.5 | G94: 390 | H94: 390 | I94: 0 | J94: 390 | K94: 117 | L94: 30
A95: 41 | B95: 292 | C95: 006 | D95: Príjmy z náhrad poist.plnenia | E95: 0 | F95: 0 | G95: 0 | H95: 0 | J95: 0 | K95: 0 | L95: 0
A96: 41 | B96: 242 | D96: Úroky z vkladov | E96: 35.94 | F96: 85.69 | G96: 0 | H96: 0 | I96: 0 | J96: 0 | K96: 0 | L96: 0
A97: 41 | B97: 292 | C97: 006 | D97: Príjmy z náhrad poist.plnenia | E97: 0 | F97: 406.61 | G97: 0 | H97: 891.5 | I97: 0 | J97: 891.5 | K97: 891.5 | L97: 100
A98: 41 | B98: 292 | C98: 008 | D98: Z výťažkov z lotérií a iných hier | E98: 2141.27 | F98: 586.55 | G98: 700 | H98: 700 | I98: 0 | J98: 700 | K98: 2.09 | L98: 0.2985714286
A99: 41 | B99: 292 | C99: 012 | D99: Príjmy z dobropisov | E99: 9773.07 | F99: 8720.81 | G99: 0 | H99: 2682.33 | I99: 0 | J99: 2682.33 | K99: 2682.33 | L99: 100
A100: 41 | B100: 292 | C100: 017 | D100: Z vratiek- úrad práce, SP | E100: 13568.88 | F100: 13097.29 | G100: 0 | H100: 113.59 | I100: 0 | J100: 113.59 | K100: 113.59 | L100: 100
A101: 41 | B101: 292 | C101: 019 | D101: Príjmy z refundácie N min.rokov | E101: 286.65 | F101: 0 | G101: 0 | H101: 0 | I101: 0 | J101: 0 | K101: 0 | L101: 0
A102: 72c | B102: 292 | C102: 027 | D102: Ostatné príjmy - vecné bremeno | E102: 308.1 | F102: 0 | G102: 0 | H102: 0 | I102: 0 | J102: 0 | K102: 0 | L102: 0
A103: 41 Vlastné príjmy obcí | E103: =SUM(E58:E102) -> 2015972.61 | F103: =SUM(F58:F102) -> 2139464.71 | G103: =SUM(G58:G102) -> 2015790 | H103: =SUM(H58:H102) -> 1893035.95 | I103: =SUM(I58:I102) -> 200 | J103: 1893235.95 | K103: =SUM(K58:K102) -> 938828.75 | L103: 49.58857611
A104: BEŽNÝ ROZPOČET | E104: =SUM(E103,E35,E53,E57,E55,E50,E38,E47) -> 2910542.89 | F104: =SUM(F103,F35,F53,F50,F55,F47) -> 3000201.91 | G104: =SUM(G103,G35,G53,G57,G55,G50,G38,G47) -> 2695800.13 | H104: =SUM(H103,H35,H53,H57,H55,H50,H38,H47) -> 2817839.12 | I104: =SUM(I103,I35,I53,I57,I55,I50,I38,I47) -> 200 | J104: 2818039.12 | K104: =SUM(K103,K35,K53,K50,K55,K47) -> 1524107.92 | L104: 54.08398731
A105: 3AB2 | B105: 322 | C105: 001 | D105: Od zahr. subj. zo ŠR.-Intenz.tr.zb. | E105: 9943.63 | F105: 0 | G105: 0 | H105: 0 | I105: 0 | J105: =SUM(H105:I105) -> 0 | K105: 0 | L105: =vypocetPercent(J105,K105) -> 0
A106: 3AB1 | B106: 332 | C106: 001 | D106: Od zahr. subj. EÚ-Intenz.tr.zb. | E106: 84520.83 | F106: 0 | G106: 0 | H106: 0 | I106: 0 | J106: =SUM(H106:I106) -> 0 | K106: 0 | L106: =vypocetPercent(J106,K106) -> 0
A107: 1AA1 | B107: 332 | C107: 001 | D107: Od zahr.subj.- projekt rozšírenie MŠ | E107: 29181.3 | F107: 0 | G107: 0 | H107: 0 | I107: 0 | J107: 0 | K107: 0 | L107: 0
A108: 1AA2 | B108: 332 | C108: 001 | D108: Od zahr.subj.- projekt rozšírenie MŠ | E108: 3433.09 | F108: 0 | G108: 0 | H108: 0 | I108: 0 | J108: 0 | K108: 0 | L108: 0
A109: 43 | B109: 231 | D109: Príjem z predaja kapit.aktív | E109: 0 | F109: 650 | G109: 0 | H109: 0 | I109: 0 | J109: 0 | K109: 0 | L109: 0
A110: 43 | B110: 233 | C110: 001 | D110: Príjem z predaja pozemkov | E110: 25251 | F110: 9510 | G110: 5000 | H110: 5000 | I110: 0 | J110: 5000 | K110: 2200 | L110: 44
A111: KAPITÁLOVÝ ROZPOČET | E111: =SUM(E105:E110) -> 152329.85 | F111: =SUM(F105:F110) -> 10160 | G111: 5000 | H111: 5000 | I111: 0 | J111: 5000 | K111: 2200 | L111: 44
A112: 131I | B112: 453 | D112: Prostr. z pred.r.zap.do prí.- dot.FPU | E112: 138.99 | F112: 0 | G112: 0 | H112: 0 | I112: 0 | J112: 0 | K112: 0 | L112: 0
A113: 131J | B113: 453 | D113: Prostr. z pred.r.zap.do prí.- dot.FPU | E113: 0 | F113: 20182.8 | G113: 0 | H113: 0 | I113: 0 | J113: 0 | K113: 0 | L113: 0
A114: 72c | B114: 453 | D114: Prostr.z predch.r. - ÚPSVaR | E114: 0 | F114: 0 | G114: 0 | H114: 8575.44 | I114: 0 | J114: 8575.44 | K114: 8575.44 | L114: 100
A115: 111 | B115: 453 | D115: Prostr.z predch.r. - ÚPSVaR strava | E115: 0 | F115: 0 | G115: 0 | H115: 33027.6 | I115: 0 | J115: 33027.6 | K115: 33027.6 | L115: 100
A116: 131K | B116: 453 | D116: Prostr.z predch.r. - sčítanie domov | E116: 0 | F116: 0 | G116: 0 | H116: 4807 | I116: 0 | J116: 4807 | K116: 4807 | L116: 100
A117: 46 | B117: 453 | D117: Prostriedky z predch. rokov 2020 | E117: 0 | F117: 0 | G117: 0 | H117: 81490 | I117: 108519.47 | J117: 190009.47 | K117: 17725.04 | L117: 9.328503469
A118: 46 | B118: 453 | D118: Prostriedky z predch. rokov - fond opráv | E118: 1595 | F118: 1987.94 | G118: 0 | H118: 0 | I118: 0 | J118: 0 | K118: 0 | L118: 0
A119: 46 | B119: 453 | D119: Prostr.z predch. rokov - 2014-2017,2019 | E119: 0 | F119: 0 | G119: 0 | H119: 0 | I119: 75530.53 | J119: 75530.53 | K119: 0 | L119: 0
A120: 46 | B120: 454 | C120: 001 | D120: Z rezervného fondu obce | E120: 20976 | F120: 9329.36 | G120: 0 | H120: 0 | I120: 0 | J120: 0 | K120: 0 | L120: 0
A121: 46 | B121: 454 | C121: 001 | D121: Z rezervného fondu obce - prístrešok | E121: 0 | F121: 0 | G121: 15000 | H121: 15000 | I121: 0 | J121: 15000 | K121: 0 | L121: 0
A122: 46 | B122: 454 | C122: 001 | D122: Z rezervného fondu obce - ÚP | E122: 0 | F122: 0 | G122: 46000 | H122: 30000 | I122: 0 | J122: 30000 | K122: 0 | L122: 0
A123: 20 | B123: 514 | C123: 002 | D123: MF SR- návratná fin.výpomoc | E123: 0 | F123: 78205 | G123: 0 | H123: 0 | I123: 0 | J123: 0 | K123: 0 | L123: =vypocetPercent(J123,K123) -> 0
A124: FINANČNÉ OPERÁCIE | E124: =SUM(E112:E123) -> 22709.99 | F124: =SUM(F112:F123) -> 109705.1 | G124: =SUM(G112:G123) -> 61000 | H124: =SUM(H112:H123) -> 172900.04 | I124: =SUM(I112:I123) -> 184050 | J124: 356950.04 | K124: =SUM(K112:K123) -> 64135.08 | L124: 17.96752285
A125: CELKOM PRÍJMY | E125: =SUM(E111,E104,E124) -> 3085582.73 | F125: =SUM(F111,F104,F124) -> 3120067.01 | G125: =SUM(G111,G104,G124) -> 2761800.13 | H125: =SUM(H111,H104,H124) -> 2995739.16 | I125: =SUM(I111,I104,I124) -> 184250 | J125: 3179989.16 | K125: =SUM(K111,K104,K124) -> 1590443 | L125: 50.01410131
D127: Príjmy ZŠ s MŠ | E127: 71000 | F127: 81000 | G127: 81000 | J127: 81000 | K127: 81000
D128: Príjmy spolu | E128: =SUM(,E125,E127) -> 3156582.73 | F128: =SUM(,F125,F127) -> 3201067.01 | G128: 2842800.13 | J128: 3260989.16 | K128: 1671443
D129: Príjmy ZŠ s MŠ | E129: 77728.34 | F129: 75323.22 | G129: 75000 | H129: 81866.99 | I129: 0 | J129: =SUM(H129:I129) -> 81866.99 | K129: 29176.71 | L129: =vypocetPercent(J129,K129) -> 35.63916299
D130: SPOLU OBEC A RO | E130: =SUM(E129,E125) -> 3163311.07 | F130: =SUM(F129,F125) -> 3195390.23 | G130: 2836800.13 | H130: 3077606.15 | I130: 184250 | J130: =SUM(H130:I130) -> 3261856.15 | K130: 1619619.71 | L130: =vypocetPercent(J130,K130) -> 49.65331503

Sheet List3
A3: 6bj | B3: N | C3: FO | D3: Rozpočet | E3: na rok
A4: Bachorecová | B4: 155.1 | C4: 20.31 | D4: =SUM(B4-C4) -> 134.79 | E4: =SUM(D4*12) -> 1617.48
A5: Kovačiková | B5: 150.1 | C5: 20.31 | D5: 129.79 | E5: 1557.48
A6: Samuel | B6: 155.18 | C6: 20.31 | D6: 134.87 | E6: 1618.44
A7: Bábinová | B7: 150.1 | C7: 20.31 | D7: 129.79 | E7: 1557.48
A8: Ježo | B8: 160 | C8: 20.31 | D8: 139.69 | E8: 1676.28
A9: Kastlová | B9: 150.1 | C9: 20.31 | D9: 129.79 | E9: 1557.48
A10: Spolu | B10: =SUM(B4:B9) -> 920.58 | C10: =SUM(C4:C9) -> 121.86 | D10: =SUM(D4:D9) -> 798.72 | E10: =SUM(E4:E9) -> 9584.64
A13: 8bj | B13: N | C13: FO | D13: Rozpočet | E13: na rok
A14: Tantoš | B14: 197.57 | C14: 17.07 | D14: =SUM(B14-C14) -> 180.5 | E14: =SUM(D14*12) -> 2166
A15: Mitro | B15: 263.23 | C15: 22.73 | D15: =SUM(B15-C15) -> 240.5 | E15: =SUM(D15*12) -> 2886
A16: Rácová | B16: 200.86 | C16: 18.36 | D16: 182.5 | E16: 2190
A17: Farkašová | B17: 221.55 | C17: 21.05 | D17: 200.5 | E17: 2406
A18: Jurík | B18: 193.9 | C18: 17.4 | D18: 176.5 | E18: 2118
A19: Valachovičová | B19: 217.42 | C19: 19.92 | D19: 197.5 | E19: 2370
A20: Dubcová | B20: 133.46 | C20: 9.96 | D20: 123.5 | E20: 1482
A21: Chlapcová | B21: 220.88 | C21: 20.38 | D21: 200.5 | E21: 2406
B22: =SUM(B14:B21) -> 1648.87 | C22: =SUM(C14:C21) -> 146.87 | D22: =SUM(D14:D21) -> 1502 | E22: =SUM(E14:E21) -> 18024
A24: 9bj | B24: N | C24: FO | D24: Rozpočet | E24: na rok
A25: Kaňáková | B25: 138.64 | C25: 19.07 | D25: =SUM(B25-C25) -> 119.57 | E25: =SUM(D25*12) -> 1434.84
A26: Smreček | B26: 139.55 | C26: 18.99 | D26: =SUM(B26-C26) -> 120.56 | E26: =SUM(D26*12) -> 1446.72
A27: Bábinová | B27: 127.43 | C27: 16.36 | D27: 111.07 | E27: 1332.84
A28: Balogh | B28: 125.6 | C28: 15.93 | D28: 109.67 | E28: 1316.04
A29: Olvecký | B29: 140.21 | C29: 18.99 | D29: 121.22 | E29: 1454.64
A30: Ulický | B30: 130.26 | C30: 18.99 | D30: 111.27 | E30: 1335.24
A31: Hatinová | B31: 135.73 | C31: 18.99 | D31: 116.74 | E31: 1400.88
A32: Mančík | B32: 112.32 | C32: 15.93 | D32: 96.39 | E32: 1156.68
A33: Podbehlý | B33: 127.91 | C33: 15.93 | D33: 111.98 | E33: 1343.76
B34: =SUM(B25:B33) -> 1177.65 | C34: =SUM(C25:C33) -> 159.18 | D34: =SUM(D25:D33) -> 1018.47 | E34: =SUM(E25:E33) -> 12221.64
A36: byt ZŠ | B36: 66.4 | E36: =SUM(B36*12) -> 796.8
A37: Spolu | D37: =SUM(D10,D22,D34) -> 3319.19 | E37: =SUM(E10,E22,E34,E36) -> 40627.08

Sheet Hárok1
C2: Rok | G2: rok
A3: Cililing | B3: 134.16 | C3: =SUM(B3*12) -> 1609.92 | E3: Čvirik | F3: 42.07 | G3: =SUM(F3*12) -> 504.84
A4: Tóth | B4: 18.6 | C4: =SUM(B4*12) -> 223.2 | E4: Petráš | F4: 119 | G4: =SUM(F4*12) -> 1428
A5: ŠKK | B5: 86.49 | C5: 1037.88 | E5: Duray | F5: 125.96 | G5: 1511.52
A6: Révai | B6: 18.6 | C6: 223.2 | E6: Homeo | F6: 128.56 | G6: 1542.72
A7: Scsaszný | B7: 11.68 | C7: 140.16 | E7: Homeo | F7: 125 | G7: 1500
A8: Juríkoá | B8: 25.52 | C8: 306.24 | E8: Tokárová | F8: 98.48 | G8: 1181.76
A9: Tran Manh | B9: 134.16 | C9: 1609.92 | E9: Juríková | F9: 362.15 | G9: 4345.8
B10: =SUM(B3:B9) -> 429.21 | C10: =SUM(C3:C9) -> 5150.52 | F10: =SUM(F3:F9) -> 1001.22 | G10: =SUM(G3:G9) -> 12014.64
A13: Spolu | B13: =SUM(C10+G10) -> 17165.16

Sheet Správa o kompatibilite
B1: Návrh na úprava príjmov obce č.8.xls - správa o kompatibilite
B2: Spustiť v 17.8.2020 9:33
B4: Nasledujúce funkcie v tomto zošite nie sú podporované v starších verziách programu Excel. Ak tento zošit uložíte v staršom formáte súboru alebo ak ho otvoríte v staršej verzii programu Excel, tieto funkcie sa môžu stratiť alebo sa môže zmeniť ich funkčnosť.
B6: Mierna strata zobrazenia | E6: počet výskytov | F6: Verzia
B8: Niektoré bunky alebo štýly v tomto zošite obsahujú formátovanie, ktoré vybratý formát súboru nepodporuje. Tieto formáty sa skonvertujú do najbližšieho dostupného formátu. | E8: 15 | F8: Excel 97-2003
